[Event "Titled Tuesday Blitz April 05 Early 2022"]
[White "Hartikainen, Jarmo"]
[Black "Fernandez Siles, Luis"]
[WhiteFideId "503134"]
[BlackFideId "2209420"]
[WhiteElo "2103"]
[BlackElo "2212"]
[Result "0-1"]
[Round "09"]
[TimeControl "180+1"]
[Date "2022.04.05"]
[WhiteClock "0:00:08"]
[BlackClock "0:00:35"]

1. e4 {[%clk 0:03:00]}  e5 {[%clk 0:02:57]} 2. Nf3 {[%clk 0:03:00]}  Nf6 {[%clk 0:02:57]} 3. d4 {[%clk 0:02:59]}  Nxe4 {[%clk 0:02:55]} 4. Bd3 {[%clk 0:02:59]}  d5 {[%clk 0:02:54]} 5. Nxe5 {[%clk 0:02:59]}  Nc6 {[%clk 0:02:43]} 6. O-O {[%clk 0:02:49]}  Nxe5 {[%clk 0:02:35]} 7. dxe5 {[%clk 0:02:48]}  Nc5 {[%clk 0:02:13]} 8. Nc3 {[%clk 0:02:27]}  Nxd3 {[%clk 0:02:13]} 9. Qxd3 {[%clk 0:02:27]}  c6 {[%clk 0:02:13]} 10. f4 {[%clk 0:02:26]}  Bc5+ {[%clk 0:02:13]} 11. Kh1 {[%clk 0:02:25]}  g6 {[%clk 0:02:10]} 12. f5 {[%clk 0:01:57]}  Bxf5 {[%clk 0:02:07]} 13. Rxf5 {[%clk 0:01:57]}  gxf5 {[%clk 0:02:08]} 14. Qxf5 {[%clk 0:01:55]}  Qd7 {[%clk 0:01:48]} 15. Qf6 {[%clk 0:01:46]}  Rg8 {[%clk 0:01:47]} 16. h3 {[%clk 0:00:44]}  Qe7 {[%clk 0:01:21]} 17. Qf4 {[%clk 0:00:23]}  O-O-O {[%clk 0:01:15]} 18. Bd2 {[%clk 0:00:23]}  Rde8 {[%clk 0:01:08]} 19. Re1 {[%clk 0:00:23]}  Qe6 {[%clk 0:01:05]} 20. a3 {[%clk 0:00:23]}  Qg6 {[%clk 0:01:00]} 21. Qf3 {[%clk 0:00:15]}  Re6 {[%clk 0:00:52]} 22. Bf4 {[%clk 0:00:14]}  Qf5 {[%clk 0:00:48]} 23. Rf1 {[%clk 0:00:12]}  Reg6 {[%clk 0:00:45]} 24. g4 {[%clk 0:00:09]}  Qxc2 {[%clk 0:00:45]} 25. Rf2 {[%clk 0:00:09]}  Qb3 {[%clk 0:00:40]} 26. e6 {[%clk 0:00:08]}  Rxe6 {[%clk 0:00:36]} 27. Rd2 {[%clk 0:00:08]}  d4 {[%clk 0:00:35]} 0-1


[Site "https://www.chess.com"]

[Event "Titled Tuesday Blitz April 05 Early 2022"]
[White "Horak, Martin"]
[Black "Potapova, Margarita"]
[WhiteFideId "367095"]
[BlackFideId "14126869"]
[WhiteElo "1997"]
[BlackElo "2216"]
[Result "0-1"]
[Round "09"]
[TimeControl "180+1"]
[Date "2022.04.05"]
[WhiteClock "0:00:28"]
[BlackClock "0:01:37"]

1. c4 {[%clk 0:02:53]}  Nf6 {[%clk 0:02:57]} 2. Nf3 {[%clk 0:02:51]}  e6 {[%clk 0:02:55]} 3. Nc3 {[%clk 0:02:48]}  d5 {[%clk 0:02:55]} 4. e3 {[%clk 0:02:48]}  g6 {[%clk 0:02:49]} 5. b3 {[%clk 0:02:47]}  Bg7 {[%clk 0:02:49]} 6. Bb2 {[%clk 0:02:48]}  O-O {[%clk 0:02:49]} 7. Qc2 {[%clk 0:02:46]}  b6 {[%clk 0:02:46]} 8. cxd5 {[%clk 0:02:45]}  exd5 {[%clk 0:02:45]} 9. d4 {[%clk 0:02:44]}  c5 {[%clk 0:02:40]} 10. Rd1 {[%clk 0:02:39]}  Nc6 {[%clk 0:02:36]} 11. dxc5 {[%clk 0:02:12]}  bxc5 {[%clk 0:02:33]} 12. Na4 {[%clk 0:01:51]}  d4 {[%clk 0:02:32]} 13. Nxc5 {[%clk 0:01:38]}  Bf5 {[%clk 0:02:28]} 14. Qd2 {[%clk 0:00:47]}  Qe7 {[%clk 0:02:13]} 15. Nxd4 {[%clk 0:00:30]}  Qxc5 {[%clk 0:02:11]} 16. Rc1 {[%clk 0:00:29]}  Qa5 {[%clk 0:01:37]} 17. Nxc6 {[%clk 0:00:27]}  Qxd2+ {[%clk 0:01:36]} 18. Kxd2 {[%clk 0:00:28]}  Ne4+ {[%clk 0:01:37]} 0-1


[Site "https://www.chess.com"]

[Event "Titled Tuesday Blitz April 05 Early 2022"]
[White "Iskusnyh, Sergei"]
[Black "nobodyperfect13"]
[WhiteFideId "4120027"]
[WhiteElo "2492"]
[BlackElo "1950"]
[Result "1-0"]
[Round "09"]
[TimeControl "180+1"]
[Date "2022.04.05"]
[WhiteClock "0:01:15"]
[BlackClock "0:01:16"]

1. d4 {[%clk 0:03:00]}  g6 {[%clk 0:02:58]} 2. c4 {[%clk 0:03:00]}  Bg7 {[%clk 0:02:57]} 3. Nf3 {[%clk 0:02:59]}  d6 {[%clk 0:02:50]} 4. g3 {[%clk 0:02:57]}  Nf6 {[%clk 0:02:45]} 5. Bg2 {[%clk 0:02:55]}  O-O {[%clk 0:02:46]} 6. Nc3 {[%clk 0:02:56]}  Bg4 {[%clk 0:02:45]} 7. h3 {[%clk 0:02:53]}  Bxf3 {[%clk 0:02:45]} 8. Bxf3 {[%clk 0:02:52]}  Nc6 {[%clk 0:02:45]} 9. e3 {[%clk 0:02:50]}  Nd7 {[%clk 0:02:45]} 10. h4 {[%clk 0:02:27]}  e5 {[%clk 0:02:42]} 11. d5 {[%clk 0:02:27]}  Ne7 {[%clk 0:02:42]} 12. h5 {[%clk 0:02:18]}  a5 {[%clk 0:02:42]} 13. e4 {[%clk 0:02:14]}  Nc5 {[%clk 0:02:39]} 14. Be3 {[%clk 0:02:14]}  f5 {[%clk 0:02:37]} 15. hxg6 {[%clk 0:02:11]}  hxg6 {[%clk 0:02:37]} 16. Qc2 {[%clk 0:02:03]}  f4 {[%clk 0:02:35]} 17. Bxc5 {[%clk 0:02:03]}  dxc5 {[%clk 0:02:35]} 18. Bg4 {[%clk 0:02:03]}  Bf6 {[%clk 0:02:26]} 19. O-O-O {[%clk 0:01:50]}  Kg7 {[%clk 0:02:25]} 20. Nb5 {[%clk 0:01:45]}  Nc8 {[%clk 0:02:18]} 21. Bxc8 {[%clk 0:01:41]}  Rxc8 {[%clk 0:02:10]} 22. d6 {[%clk 0:01:41]}  c6 {[%clk 0:02:09]} 23. d7 {[%clk 0:01:31]}  Ra8 {[%clk 0:01:47]} 24. Nd6 {[%clk 0:01:30]}  Rb8 {[%clk 0:01:38]} 25. Ne8+ {[%clk 0:01:26]}  Rxe8 {[%clk 0:01:29]} 26. dxe8=Q {[%clk 0:01:25]}  Qxe8 {[%clk 0:01:30]} 27. Qd2 {[%clk 0:01:25]}  Rd8 {[%clk 0:01:26]} 28. Qxa5 {[%clk 0:01:24]}  Rd4 {[%clk 0:01:24]} 29. Qc7+ {[%clk 0:01:17]}  Qf7 {[%clk 0:01:16]} 30. Rh7+ {[%clk 0:01:15]} 1-0


[Site "https://www.chess.com"]

[Event "Titled Tuesday Blitz April 05 Early 2022"]
[White "Ivanov, Mike"]
[Black "Kaminski, Victor"]
[WhiteFideId "2613158"]
[BlackFideId "1131630"]
[WhiteElo "2182"]
[BlackElo "2181"]
[Result "1-0"]
[Round "09"]
[TimeControl "180+1"]
[Date "2022.04.05"]
[WhiteClock "0:00:08"]
[BlackClock "0:00:12"]

1. e4 {[%clk 0:03:00]}  e5 {[%clk 0:02:57]} 2. Nf3 {[%clk 0:03:00]}  Nc6 {[%clk 0:02:47]} 3. Nc3 {[%clk 0:03:01]}  Nf6 {[%clk 0:02:47]} 4. Bb5 {[%clk 0:02:59]}  Bb4 {[%clk 0:02:35]} 5. O-O {[%clk 0:02:59]}  O-O {[%clk 0:02:35]} 6. d3 {[%clk 0:02:58]}  d6 {[%clk 0:02:31]} 7. Ne2 {[%clk 0:02:58]}  Ne7 {[%clk 0:02:30]} 8. c3 {[%clk 0:02:58]}  Ba5 {[%clk 0:02:30]} 9. Ng3 {[%clk 0:02:57]}  c6 {[%clk 0:02:29]} 10. Ba4 {[%clk 0:02:55]}  Ng6 {[%clk 0:02:29]} 11. d4 {[%clk 0:02:51]}  Bc7 {[%clk 0:02:27]} 12. h3 {[%clk 0:02:49]}  h6 {[%clk 0:02:27]} 13. Re1 {[%clk 0:02:46]}  Qe7 {[%clk 0:02:25]} 14. Nf5 {[%clk 0:02:25]}  Qd8 {[%clk 0:02:13]} 15. Qc2 {[%clk 0:02:08]}  Re8 {[%clk 0:02:04]} 16. dxe5 {[%clk 0:01:49]}  Nxe5 {[%clk 0:02:01]} 17. N3d4 {[%clk 0:01:40]}  d5 {[%clk 0:01:57]} 18. exd5 {[%clk 0:01:32]}  Nxd5 {[%clk 0:01:49]} 19. Bd2 {[%clk 0:01:18]}  a5 {[%clk 0:01:39]} 20. Bb3 {[%clk 0:01:16]}  h5 {[%clk 0:01:14]} 21. Rad1 {[%clk 0:01:11]}  g6 {[%clk 0:01:13]} 22. Ne3 {[%clk 0:01:01]}  Nf4 {[%clk 0:01:04]} 23. Bc1 {[%clk 0:00:33]}  Qg5 {[%clk 0:00:56]} 24. Kh2 {[%clk 0:00:20]}  Qh4 {[%clk 0:00:50]} 25. Nef5 {[%clk 0:00:12]}  Bxf5 {[%clk 0:00:36]} 26. Nxf5 {[%clk 0:00:12]}  Nf3+ {[%clk 0:00:34]} 27. Kh1 {[%clk 0:00:07]}  gxf5 {[%clk 0:00:27]} 28. Qxf5 {[%clk 0:00:07]}  Re7 {[%clk 0:00:12]} 29. Rxe7 {[%clk 0:00:05]}  Qxe7 {[%clk 0:00:10]} 30. Bxf4 {[%clk 0:00:05]}  Bxf4 {[%clk 0:00:09]} 31. Qxf4 {[%clk 0:00:06]}  Ne5 {[%clk 0:00:10]} 32. Re1 {[%clk 0:00:05]}  Re8 {[%clk 0:00:08]} 33. Bc2 {[%clk 0:00:02]}  f6 {[%clk 0:00:07]} 34. Qf5 {[%clk 0:00:03]}  Qg7 {[%clk 0:00:08]} 35. f4 {[%clk 0:00:02]}  Qg3 {[%clk 0:00:08]} 36. Re2 {[%clk 0:00:01]}  Kf8 {[%clk 0:00:03]} 37. fxe5 {[%clk 0:00:02]}  Qg5 {[%clk 0:00:02]} 38. Qxf6+ {[%clk 0:00:02]}  Qxf6 {[%clk 0:00:01]} 39. exf6 {[%clk 0:00:03]}  Rxe2 {[%clk 0:00:02]} 40. Bb3 {[%clk 0:00:03]}  Rxb2 {[%clk 0:00:03]} 41. Kh2 {[%clk 0:00:03]}  Rb1 {[%clk 0:00:03]} 42. Kg3 {[%clk 0:00:03]}  Rb2 {[%clk 0:00:04]} 43. Kf3 {[%clk 0:00:03]}  b5 {[%clk 0:00:05]} 44. g4 {[%clk 0:00:04]}  a4 {[%clk 0:00:05]} 45. Be6 {[%clk 0:00:04]}  hxg4+ {[%clk 0:00:06]} 46. hxg4 {[%clk 0:00:04]}  Rb1 {[%clk 0:00:05]} 47. g5 {[%clk 0:00:04]}  Rg1 {[%clk 0:00:05]} 48. Kf4 {[%clk 0:00:04]}  c5 {[%clk 0:00:06]} 49. Kf5 {[%clk 0:00:05]}  b4 {[%clk 0:00:06]} 50. cxb4 {[%clk 0:00:04]}  cxb4 {[%clk 0:00:05]} 51. g6 {[%clk 0:00:05]}  Rf1+ {[%clk 0:00:05]} 52. Ke5 {[%clk 0:00:05]}  Rg1 {[%clk 0:00:05]} 53. g7+ {[%clk 0:00:04]}  Rxg7 {[%clk 0:00:05]} 54. fxg7+ {[%clk 0:00:04]}  Kxg7 {[%clk 0:00:06]} 55. Kd4 {[%clk 0:00:04]}  b3 {[%clk 0:00:06]} 56. a3 {[%clk 0:00:04]}  Kf6 {[%clk 0:00:05]} 57. Bc4 {[%clk 0:00:04]}  Kf5 {[%clk 0:00:04]} 58. Bd3+ {[%clk 0:00:05]}  Kf4 {[%clk 0:00:04]} 59. Kc3 {[%clk 0:00:05]}  Ke3 {[%clk 0:00:04]} 60. Bh7 {[%clk 0:00:05]}  Ke2 {[%clk 0:00:04]} 61. Kb4 {[%clk 0:00:04]}  Kd2 {[%clk 0:00:03]} 62. Kxa4 {[%clk 0:00:05]}  Kc3 {[%clk 0:00:04]} 63. Kb5 {[%clk 0:00:04]}  b2 {[%clk 0:00:04]} 64. a4 {[%clk 0:00:05]}  b1=Q+ {[%clk 0:00:05]} 65. Bxb1 {[%clk 0:00:04]}  Kb3 {[%clk 0:00:06]} 66. a5 {[%clk 0:00:04]}  Kb2 {[%clk 0:00:07]} 67. a6 {[%clk 0:00:05]}  Kc1 {[%clk 0:00:08]} 68. a7 {[%clk 0:00:06]}  Kxb1 {[%clk 0:00:08]} 69. a8=Q {[%clk 0:00:06]}  Kb2 {[%clk 0:00:09]} 70. Qf3 {[%clk 0:00:07]}  Kb1 {[%clk 0:00:10]} 71. Kc4 {[%clk 0:00:07]}  Ka2 {[%clk 0:00:10]} 72. Qe3 {[%clk 0:00:07]}  Kb2 {[%clk 0:00:11]} 73. Qc3+ {[%clk 0:00:06]}  Kb1 {[%clk 0:00:12]} 74. Qd2 {[%clk 0:00:06]}  Ka1 {[%clk 0:00:12]} 75. Kb3 {[%clk 0:00:07]}  Kb1 {[%clk 0:00:12]} 76. Qb2# {[%clk 0:00:08]} 1-0


[Site "https://www.chess.com"]

[Event "Titled Tuesday Blitz April 05 Early 2022"]
[White "Koridze, Lile"]
[Black "Iljin, Timofey"]
[WhiteFideId "13612514"]
[BlackFideId "14110180"]
[WhiteElo "2050"]
[BlackElo "2396"]
[Result "1-0"]
[Round "09"]
[TimeControl "180+1"]
[Date "2022.04.05"]
[WhiteClock "0:00:22"]
[BlackClock "0:00:02"]

1. d4 {[%clk 0:03:00]}  d5 {[%clk 0:03:00]} 2. c4 {[%clk 0:03:00]}  e6 {[%clk 0:03:01]} 3. Nc3 {[%clk 0:03:01]}  Bb4 {[%clk 0:03:01]} 4. e3 {[%clk 0:03:00]}  Nf6 {[%clk 0:03:01]} 5. Bd3 {[%clk 0:03:00]}  O-O {[%clk 0:03:01]} 6. Ne2 {[%clk 0:02:58]}  b6 {[%clk 0:03:00]} 7. O-O {[%clk 0:02:57]}  Ba6 {[%clk 0:03:00]} 8. cxd5 {[%clk 0:02:57]}  exd5 {[%clk 0:03:01]} 9. a3 {[%clk 0:02:56]}  Bxd3 {[%clk 0:02:52]} 10. Qxd3 {[%clk 0:02:56]}  Bd6 {[%clk 0:02:53]} 11. h3 {[%clk 0:02:55]}  a6 {[%clk 0:02:47]} 12. e4 {[%clk 0:02:52]}  dxe4 {[%clk 0:02:44]} 13. Nxe4 {[%clk 0:02:52]}  Nxe4 {[%clk 0:02:45]} 14. Qxe4 {[%clk 0:02:51]}  Nd7 {[%clk 0:02:46]} 15. Qc2 {[%clk 0:02:47]}  Re8 {[%clk 0:02:43]} 16. Nc3 {[%clk 0:02:41]}  Qf6 {[%clk 0:02:34]} 17. Be3 {[%clk 0:02:37]}  Qe6 {[%clk 0:02:21]} 18. Rfe1 {[%clk 0:02:30]}  Nf6 {[%clk 0:02:20]} 19. Qd2 {[%clk 0:02:27]}  Qb3 {[%clk 0:02:18]} 20. Re2 {[%clk 0:02:22]}  Nd5 {[%clk 0:02:14]} 21. Rae1 {[%clk 0:02:17]}  Nxc3 {[%clk 0:02:11]} 22. bxc3 {[%clk 0:02:11]}  Bxa3 {[%clk 0:02:11]} 23. Bf4 {[%clk 0:02:11]}  Rxe2 {[%clk 0:02:03]} 24. Rxe2 {[%clk 0:02:11]}  Qc4 {[%clk 0:01:47]} 25. Re1 {[%clk 0:02:10]}  h6 {[%clk 0:01:41]} 26. Qe3 {[%clk 0:02:09]}  Bf8 {[%clk 0:01:25]} 27. Qg3 {[%clk 0:02:08]}  Kh7 {[%clk 0:01:20]} 28. Bxc7 {[%clk 0:02:07]}  b5 {[%clk 0:01:19]} 29. Re4 {[%clk 0:02:00]}  a5 {[%clk 0:01:10]} 30. Rg4 {[%clk 0:01:59]}  a4 {[%clk 0:01:07]} 31. Be5 {[%clk 0:01:57]}  f6 {[%clk 0:01:07]} 32. Qf3 {[%clk 0:01:48]}  Ra6 {[%clk 0:00:57]} 33. Qf5+ {[%clk 0:01:45]}  Kh8 {[%clk 0:00:53]} 34. Bf4 {[%clk 0:01:35]}  Qxc3 {[%clk 0:00:39]} 35. Qd5 {[%clk 0:01:02]}  Qe1+ {[%clk 0:00:32]} 36. Kh2 {[%clk 0:01:02]}  Qe6 {[%clk 0:00:33]} 37. Qxb5 {[%clk 0:00:58]}  a3 {[%clk 0:00:34]} 38. d5 {[%clk 0:00:58]}  Rb6 {[%clk 0:00:11]} 39. Qa5 {[%clk 0:00:49]}  Ra6 {[%clk 0:00:09]} 40. Qd8 {[%clk 0:00:28]}  Qe7 {[%clk 0:00:07]} 41. Qc8 {[%clk 0:00:28]}  Rd6 {[%clk 0:00:06]} 42. Bxd6 {[%clk 0:00:24]}  Qxd6+ {[%clk 0:00:07]} 43. g3 {[%clk 0:00:25]}  a2 {[%clk 0:00:03]} 44. Qa8 {[%clk 0:00:24]}  Qc5 {[%clk 0:00:03]} 45. Kg2 {[%clk 0:00:23]}  Qc1 {[%clk 0:00:02]} 46. Qxf8+ {[%clk 0:00:22]}  Kh7 {[%clk 0:00:02]} 47. Qxg7# {[%clk 0:00:22]} 1-0


[Site "https://www.chess.com"]

[Event "Titled Tuesday Blitz April 05 Early 2022"]
[White "Kostina, Nadezhda"]
[Black "Saim, Mohamed Ilias"]
[WhiteFideId "4195876"]
[BlackFideId "7900465"]
[WhiteElo "1982"]
[BlackElo "2006"]
[Result "1-0"]
[Round "09"]
[TimeControl "180+1"]
[Date "2022.04.05"]
[WhiteClock "0:01:17"]
[BlackClock "0:00:15"]

1. e4 {[%clk 0:03:00]}  c6 {[%clk 0:02:59]} 2. d4 {[%clk 0:02:59]}  d5 {[%clk 0:03:00]} 3. e5 {[%clk 0:02:57]}  Bf5 {[%clk 0:02:59]} 4. h4 {[%clk 0:02:57]}  h5 {[%clk 0:02:59]} 5. Bd3 {[%clk 0:02:53]}  Bxd3 {[%clk 0:02:58]} 6. Qxd3 {[%clk 0:02:53]}  e6 {[%clk 0:02:58]} 7. Nf3 {[%clk 0:02:51]}  Ne7 {[%clk 0:02:57]} 8. Nbd2 {[%clk 0:02:40]}  Nd7 {[%clk 0:02:50]} 9. Nf1 {[%clk 0:02:39]}  g6 {[%clk 0:02:44]} 10. Bg5 {[%clk 0:02:32]}  Qa5+ {[%clk 0:02:42]} 11. c3 {[%clk 0:02:27]}  c5 {[%clk 0:02:32]} 12. Bxe7 {[%clk 0:02:23]}  Bxe7 {[%clk 0:02:31]} 13. Ng5 {[%clk 0:02:20]}  cxd4 {[%clk 0:02:18]} 14. Qxd4 {[%clk 0:02:10]}  Bc5 {[%clk 0:02:07]} 15. Qf4 {[%clk 0:02:07]}  O-O {[%clk 0:01:32]} 16. b4 {[%clk 0:02:05]}  Qa3 {[%clk 0:01:25]} 17. Nd2 {[%clk 0:01:45]}  Qxc3 {[%clk 0:01:06]} 18. O-O {[%clk 0:01:44]}  Bxb4 {[%clk 0:01:00]} 19. Ndf3 {[%clk 0:01:42]}  Be7 {[%clk 0:00:52]} 20. Rac1 {[%clk 0:01:31]}  Qb4 {[%clk 0:00:51]} 21. Qg3 {[%clk 0:01:25]}  Rac8 {[%clk 0:00:46]} 22. Nxe6 {[%clk 0:01:20]}  fxe6 {[%clk 0:00:21]} 23. Qxg6+ {[%clk 0:01:19]}  Kh8 {[%clk 0:00:20]} 24. Qh6+ {[%clk 0:01:19]}  Kg8 {[%clk 0:00:20]} 25. Qxe6+ {[%clk 0:01:19]}  Rf7 {[%clk 0:00:15]} 26. Rxc8+ {[%clk 0:01:17]} 1-0


[Site "https://www.chess.com"]

[Event "Titled Tuesday Blitz April 05 Early 2022"]
[White "Krishna, C R G"]
[Black "Baches Garcia, Guillermo"]
[WhiteFideId "5018625"]
[BlackFideId "2209764"]
[WhiteElo "2332"]
[BlackElo "2492"]
[Result "1-0"]
[Round "09"]
[TimeControl "180+1"]
[Date "2022.04.05"]
[WhiteClock "0:00:11"]
[BlackClock "0:00:25"]

1. e4 {[%clk 0:00:36]}  c5 {[%clk 0:02:59]} 2. Nc3 {[%clk 0:00:36]}  d6 {[%clk 0:02:59]} 3. f4 {[%clk 0:00:35]}  Nc6 {[%clk 0:02:59]} 4. Nf3 {[%clk 0:00:36]}  g6 {[%clk 0:02:59]} 5. Bc4 {[%clk 0:00:37]}  Bg7 {[%clk 0:03:00]} 6. O-O {[%clk 0:00:37]}  e6 {[%clk 0:03:00]} 7. d3 {[%clk 0:00:38]}  Nge7 {[%clk 0:03:00]} 8. Qe1 {[%clk 0:00:38]}  O-O {[%clk 0:02:59]} 9. f5 {[%clk 0:00:39]}  Nd4 {[%clk 0:02:55]} 10. Nxd4 {[%clk 0:00:36]}  cxd4 {[%clk 0:02:49]} 11. f6 {[%clk 0:00:35]}  dxc3 {[%clk 0:02:38]} 12. fxg7 {[%clk 0:00:35]}  Kxg7 {[%clk 0:02:38]} 13. Qxc3+ {[%clk 0:00:34]}  f6 {[%clk 0:02:36]} 14. Be3 {[%clk 0:00:30]}  Nc6 {[%clk 0:02:34]} 15. Qd2 {[%clk 0:00:12]}  Rf7 {[%clk 0:02:30]} 16. Rf2 {[%clk 0:00:12]}  Ne5 {[%clk 0:02:26]} 17. Bb3 {[%clk 0:00:11]}  Ng4 {[%clk 0:02:25]} 18. Rf3 {[%clk 0:00:10]}  Nxe3 {[%clk 0:02:25]} 19. Qxe3 {[%clk 0:00:11]}  Bd7 {[%clk 0:02:20]} 20. Raf1 {[%clk 0:00:11]}  Qe7 {[%clk 0:02:19]} 21. h4 {[%clk 0:00:11]}  Raf8 {[%clk 0:02:16]} 22. h5 {[%clk 0:00:11]}  g5 {[%clk 0:02:16]} 23. h6+ {[%clk 0:00:08]}  Kxh6 {[%clk 0:02:13]} 24. Qxa7 {[%clk 0:00:09]}  Bc6 {[%clk 0:02:02]} 25. Qd4 {[%clk 0:00:08]}  Kg7 {[%clk 0:02:01]} 26. Rg3 {[%clk 0:00:08]}  h6 {[%clk 0:02:00]} 27. Rgf3 {[%clk 0:00:07]}  Kg6 {[%clk 0:01:55]} 28. R3f2 {[%clk 0:00:08]}  Bd7 {[%clk 0:01:46]} 29. c3 {[%clk 0:00:08]}  Bc6 {[%clk 0:01:39]} 30. Qe3 {[%clk 0:00:08]}  Kg7 {[%clk 0:01:37]} 31. d4 {[%clk 0:00:08]}  d5 {[%clk 0:01:35]} 32. exd5 {[%clk 0:00:08]}  exd5 {[%clk 0:01:32]} 33. Qd3 {[%clk 0:00:08]}  Qd7 {[%clk 0:01:18]} 34. Bc2 {[%clk 0:00:08]}  f5 {[%clk 0:01:18]} 35. Rxf5 {[%clk 0:00:09]}  Rxf5 {[%clk 0:01:18]} 36. Rxf5 {[%clk 0:00:09]}  Rxf5 {[%clk 0:01:14]} 37. Qxf5 {[%clk 0:00:10]}  Qxf5 {[%clk 0:01:15]} 38. Bxf5 {[%clk 0:00:11]}  Kf6 {[%clk 0:01:15]} 39. Bc8 {[%clk 0:00:11]}  h5 {[%clk 0:01:11]} 40. Kf2 {[%clk 0:00:11]}  g4 {[%clk 0:01:11]} 41. a4 {[%clk 0:00:06]}  Bxa4 {[%clk 0:01:08]} 42. Bxb7 {[%clk 0:00:07]}  Bb3 {[%clk 0:01:08]} 43. g3 {[%clk 0:00:07]}  Kg5 {[%clk 0:01:08]} 44. Bc8 {[%clk 0:00:07]}  h4 {[%clk 0:01:07]} 45. gxh4+ {[%clk 0:00:08]}  Kxh4 {[%clk 0:01:08]} 46. Be6 {[%clk 0:00:07]}  Bc4 {[%clk 0:01:05]} 47. Bg8 {[%clk 0:00:06]}  Bd3 {[%clk 0:01:02]} 48. Bxd5 {[%clk 0:00:05]}  Kh3 {[%clk 0:01:02]} 49. Kg1 {[%clk 0:00:06]}  Kg3 {[%clk 0:00:56]} 50. b4 {[%clk 0:00:07]}  Kf4 {[%clk 0:00:57]} 51. Bc6 {[%clk 0:00:07]}  Ke3 {[%clk 0:00:55]} 52. b5 {[%clk 0:00:07]}  Kd2 {[%clk 0:00:53]} 53. b6 {[%clk 0:00:08]}  Ba6 {[%clk 0:00:41]} 54. b7 {[%clk 0:00:08]}  Bxb7 {[%clk 0:00:22]} 55. Bxb7 {[%clk 0:00:09]}  Kxc3 {[%clk 0:00:23]} 56. d5 {[%clk 0:00:09]}  Kd4 {[%clk 0:00:24]} 57. d6 {[%clk 0:00:10]}  Ke5 {[%clk 0:00:24]} 58. d7 {[%clk 0:00:11]}  Kd6 {[%clk 0:00:25]} 59. d8=Q+ {[%clk 0:00:11]} 1-0


[Site "https://www.chess.com"]

[Event "Titled Tuesday Blitz April 05 Early 2022"]
[White "Krysa, Leandro"]
[Black "Becerra, Juan David"]
[WhiteFideId "116807"]
[BlackFideId "4404998"]
[WhiteElo "2490"]
[BlackElo "2277"]
[Result "1-0"]
[Round "09"]
[TimeControl "180+1"]
[Date "2022.04.05"]
[WhiteClock "0:00:32"]
[BlackClock "0:00:04"]

1. e4 {[%clk 0:02:57]}  e5 {[%clk 0:02:58]} 2. Nf3 {[%clk 0:02:55]}  Nc6 {[%clk 0:02:47]} 3. Bb5 {[%clk 0:02:55]}  a6 {[%clk 0:02:45]} 4. Ba4 {[%clk 0:02:55]}  d6 {[%clk 0:02:45]} 5. O-O {[%clk 0:02:52]}  Bd7 {[%clk 0:02:39]} 6. c4 {[%clk 0:02:51]}  Nf6 {[%clk 0:02:29]} 7. d4 {[%clk 0:02:46]}  Nxd4 {[%clk 0:02:02]} 8. Bxd7+ {[%clk 0:02:44]}  Nxd7 {[%clk 0:01:52]} 9. Nxd4 {[%clk 0:02:45]}  exd4 {[%clk 0:01:52]} 10. Qxd4 {[%clk 0:02:45]}  Qf6 {[%clk 0:01:52]} 11. Qxf6 {[%clk 0:02:36]}  Nxf6 {[%clk 0:01:53]} 12. Nc3 {[%clk 0:02:37]}  g6 {[%clk 0:01:31]} 13. f3 {[%clk 0:02:28]}  Bg7 {[%clk 0:01:30]} 14. Be3 {[%clk 0:02:28]}  O-O {[%clk 0:01:06]} 15. Rac1 {[%clk 0:02:27]}  Rfc8 {[%clk 0:00:55]} 16. b3 {[%clk 0:02:15]}  Ne8 {[%clk 0:00:53]} 17. Nd5 {[%clk 0:02:14]}  Kf8 {[%clk 0:00:53]} 18. c5 {[%clk 0:02:11]}  Nf6 {[%clk 0:00:42]} 19. c6 {[%clk 0:01:43]}  b6 {[%clk 0:00:33]} 20. Rfd1 {[%clk 0:01:36]}  Nxd5 {[%clk 0:00:31]} 21. Rxd5 {[%clk 0:01:33]}  Bb2 {[%clk 0:00:31]} 22. Rc2 {[%clk 0:01:32]}  Ba3 {[%clk 0:00:31]} 23. Kf1 {[%clk 0:01:25]}  Bc5 {[%clk 0:00:29]} 24. Bd2 {[%clk 0:01:21]}  a5 {[%clk 0:00:27]} 25. Ke2 {[%clk 0:01:16]}  b5 {[%clk 0:00:23]} 26. Be3 {[%clk 0:01:07]}  Ra6 {[%clk 0:00:16]} 27. Bxc5 {[%clk 0:01:00]}  Rxc6 {[%clk 0:00:15]} 28. Bxd6+ {[%clk 0:00:57]}  cxd6 {[%clk 0:00:16]} 29. Rxc6 {[%clk 0:00:57]}  Rxc6 {[%clk 0:00:17]} 30. Kd2 {[%clk 0:00:56]}  Rb6 {[%clk 0:00:17]} 31. g4 {[%clk 0:00:54]}  Ke7 {[%clk 0:00:16]} 32. h4 {[%clk 0:00:55]}  Kd7 {[%clk 0:00:15]} 33. h5 {[%clk 0:00:55]}  Kc6 {[%clk 0:00:15]} 34. Ke3 {[%clk 0:00:49]}  Rb8 {[%clk 0:00:15]} 35. Kf4 {[%clk 0:00:48]}  Ra8 {[%clk 0:00:14]} 36. a4 {[%clk 0:00:45]}  Rb8 {[%clk 0:00:10]} 37. Kg5 {[%clk 0:00:39]}  bxa4 {[%clk 0:00:09]} 38. bxa4 {[%clk 0:00:39]}  Rb3 {[%clk 0:00:09]} 39. Kf4 {[%clk 0:00:39]}  f6 {[%clk 0:00:03]} 40. Rxa5 {[%clk 0:00:35]}  g5+ {[%clk 0:00:04]} 41. Kg3 {[%clk 0:00:34]}  Kd7 {[%clk 0:00:04]} 42. Ra7+ {[%clk 0:00:34]}  Ke6 {[%clk 0:00:04]} 43. Rxh7 {[%clk 0:00:33]}  Ra3 {[%clk 0:00:05]} 44. Ra7 {[%clk 0:00:33]}  Ra2 {[%clk 0:00:04]} 45. a5 {[%clk 0:00:32]} 1-0


[Site "https://www.chess.com"]